fUSD/lending_fUSD_20260208
["ID","MTS","AMOUNT","RATE_DAILY","PERIOD"]
[404807629,1770582640899,-511.15217907,0.00043835,120]
[404807631,1770582640909,-500.0,0.00043835,120]
[404807633,1770582640918,-500.0,0.00043835,120]
[404807635,1770582640927,-9092.66790244,0.00043835,15]
[404807637,1770582640936,-527.40701074,0.00043835,120]
[404807638,1770582640946,-508.1886056,0.00043835,120]
[404807641,1770582640956,-500.0,0.00043835,120]
[404807643,1770582640965,-469.15561681,0.00043835,120]
[404807645,1770582640975,-500.0,0.00043835,120]
[404807647,1770582640985,-512.1090984,0.00043835,120]
[404807649,1770582640995,-500.0,0.00043835,120]
[404807651,1770582641005,-500.0,0.00043835,120]
[404807653,1770582641017,-25000.0,0.00043835,15]
[404807655,1770582641027,-508.00612616,0.00043835,120]
[404807657,1770582641036,-500.0,0.00043835,120]
[404807659,1770582641047,-156.08,0.00043835,120]
[404807661,1770582641056,-516.29400781,0.00043835,120]
[404807663,1770582641067,-511.63126456,0.00043835,120]
[404807665,1770582641076,-512.67709021,0.00043835,120]
[404807667,1770582641085,-500.0,0.00043835,120]
[404807669,1770582641095,-500.0,0.00043835,60]
[404807670,1770582641104,-500.0,0.00043835,60]
[404807672,1770582641114,-500.0,0.00043835,60]
[404807674,1770582641129,-500.0,0.00043835,60]
[404807676,1770582641139,-500.0,0.00043835,60]
[404807678,1770582641148,-500.0,0.00043835,60]
[404807680,1770582641157,-500.0,0.00043835,60]
[404807682,1770582641168,-621.82,0.00043835,120]
[404807684,1770582641178,-500.0,0.00043835,120]
[404807686,1770582641187,-500.0,0.00043835,120]
[404807688,1770582641198,-481.12912873,0.00043835,120]
[404807690,1770582641208,-507.92970229,0.00043835,120]
[404807692,1770582641219,-510.01353917,0.00043835,120]
[404807694,1770582641229,-512.55454383,0.00043835,120]
[404807696,1770582641239,-500.0,0.00043835,120]
[404807698,1770582641248,-458.72191811,0.00043835,120]
[404807700,1770582641258,-515.50773263,0.00043835,120]
[404807701,1770582641267,-640.23701102,0.00043835,120]
[404807702,1770582641276,-500.0,0.00043835,120]
[404807703,1770582641286,-527.06115507,0.00043835,120]
[404807704,1770582641296,-527.98031355,0.00043835,120]
[404807705,1770582641306,-527.34887562,0.00043835,120]
[404807706,1770582641316,-572.71662605,0.00043835,120]
[404807707,1770582641326,-500.0,0.00043835,120]
[404807708,1770582641335,-604.28,0.00043835,120]
[404807709,1770582641345,-500.0,0.00043835,120]
[404807710,1770582641354,-506.8158921,0.00043835,120]
[404807711,1770582641364,-558.28225915,0.00043835,120]
[404807712,1770582641374,-505.91514197,0.00043835,120]
[404807713,1770582641383,-500.0,0.00043835,120]
[404807714,1770582641393,-500.0,0.00043835,120]
[404807715,1770582641402,-500.0,0.00043835,120]
[404807716,1770582641412,-500.0,0.00043835,120]
[404807717,1770582641422,-500.0,0.00043835,120]
[404807718,1770582641431,-500.0,0.00043835,120]
[404807719,1770582641441,-500.0,0.00043835,120]
[404807720,1770582641451,-500.0,0.00043835,120]
[404807721,1770582641461,-500.0,0.00043835,120]
[404807722,1770582641470,-500.0,0.00043835,120]
[404807723,1770582641480,-500.0,0.00043835,120]
[404807724,1770582641489,-500.0,0.00043835,120]
[404807725,1770582641499,-522.51334949,0.00043835,120]
[404807726,1770582641509,-14972.0,0.00043835,120]
[404807727,1770582641518,-507.86682082,0.00043835,120]
[404807728,1770582641528,-515.57597036,0.00043835,120]
[404807729,1770582641537,-500.0,0.00043835,120]
[404807730,1770582641547,-500.0,0.00043835,120]
[404807731,1770582641556,-500.0,0.00043835,120]
[404807732,1770582641566,-500.0,0.00043835,120]
[404807733,1770582641576,-372.48653616,0.00043835,120]
[404807734,1770582641586,-500.0,0.00043835,120]
[404807735,1770582641595,-500.0,0.00043835,120]
[404807736,1770582641606,-500.0,0.00043835,120]
[404807737,1770582641625,-500.0,0.00043835,120]
[404807738,1770582641635,-532.58292275,0.00043835,120]
[404807739,1770582641644,-500.0,0.00043835,120]
[404807740,1770582641653,-500.0,0.00043835,120]
[404807741,1770582641663,-541.79548207,0.00043835,120]
[404807742,1770582641672,-642.11007679,0.00043835,120]
[404807743,1770582641683,-500.0,0.00043835,120]
[404807744,1770582641692,-309.39236467,0.00043835,120]
[404807745,1770582641702,-632.27138052,0.00043835,120]
[404807746,1770582641712,-500.0,0.00043835,120]
[404807747,1770582641721,-587.28640187,0.00043835,120]
[404807748,1770582641733,-569.88560542,0.00043835,120]
[404807749,1770582641743,-500.0,0.00043835,120]
[404807750,1770582641753,-500.0,0.00043835,120]
[404807751,1770582641763,-500.0,0.00043835,120]
[404807752,1770582641773,-500.0,0.00043835,120]
[404807753,1770582641784,-506.61615214,0.00043835,120]
[404807754,1770582641794,-500.0,0.00043835,120]
[404807755,1770582641804,-539.40911628,0.00043835,120]
[404807756,1770582641814,-426.49097965,0.00043835,120]
[404807757,1770582641824,-500.0,0.00043835,120]
[404807758,1770582641834,-540.32254068,0.00043835,120]
[404807759,1770582641845,-265.06963232,0.00043835,2]
[404807760,1770582641855,-1999.0,0.00043835,120]
[404807761,1770582641865,-25000.0,0.00043835,15]
[404807762,1770582641876,-500.0,0.00043835,120]
[404807763,1770582641886,-500.0,0.00043835,120]
[404807764,1770582641896,-366.52,0.00043835,120]
[404807765,1770582641906,-500.0,0.00043835,120]
[404807766,1770582641916,-237.88465334,0.00043835,120]
[404807767,1770582641926,-633.28314932,0.00043835,120]
[404807768,1770582641937,-191.08972978,0.00043835,120]
[404807769,1770582641947,-500.0,0.00043835,120]
[404807770,1770582641958,-500.0,0.00043835,120]
[404807771,1770582641968,-500.0,0.00043835,120]
[404807772,1770582641978,-500.0,0.00043835,120]
[404807773,1770582641989,-500.0,0.00043835,120]
[404807774,1770582642004,-500.0,0.00043835,120]
[404807775,1770582642014,-500.0,0.00043835,120]
[404807776,1770582642025,-500.0,0.00043835,120]
[404807777,1770582642035,-500.0,0.00043835,120]
[404807778,1770582642045,-551.19137094,0.00043835,120]
[404807779,1770582642055,-500.0,0.00043835,120]
[404807780,1770582642066,-197.29607274,0.00043835,120]
[404807781,1770582642075,-500.0,0.00043835,120]
[404807782,1770582642085,-231.23,0.00043835,120]
[404807783,1770582642094,-500.0,0.00043835,120]
[404807784,1770582642104,-500.0,0.00043835,120]
[404807785,1770582642113,-519.67,0.00043835,120]
[404807786,1770582642123,-527.3580023,0.00043835,120]
[404807787,1770582642135,-500.0,0.00043835,120]
[404807788,1770582642145,-500.0,0.00043835,120]
[404807789,1770582642154,-500.0,0.00043835,120]
[404807790,1770582642165,-500.0,0.00043835,120]
[404807791,1770582642175,-150.0,0.00043873,10]
[404807792,1770582642185,-826.10187324,0.00043914,2]
[404807793,1770582642194,-2699.0,0.00043917,16]
[404807794,1770582642204,-1130.65671127,0.00043927,2]
[404807795,1770582642214,-77883.69765978,0.00044,120]
[404807796,1770582642224,-152.0,0.00044,120]
[404807797,1770582642233,-151.0,0.00044,60]
[404807798,1770582642247,-500.0,0.00044,120]
[404807799,1770582642256,-2000.0,0.00044038,3]
[404807800,1770582642267,-154.0,0.000441,120]
[404807801,1770582642279,-622.49,0.00044105,120]
[404807802,1770582642288,-154.247552,0.00044162,120]
[404807803,1770582642300,-1074.66606047,0.00044177,14]
[404807804,1770582642311,-150.0,0.000442,29]
[404807805,1770582642321,-150.0,0.000442,73]
[404807806,1770582642331,-253.0,0.000442,45]
[404807807,1770582642340,-150.0,0.000442,2]
[404807808,1770582642350,-1132.21493571,0.00044205,15]
[404807809,1770582642360,-539.84175899,0.00044205,19]
[404807810,1770582642370,-1741.73214038,0.00044205,28]
[404807811,1770582642385,-3137.86566439,0.00044205,15]
[404807812,1770582642395,-267.49254166,0.00044205,120]
[404807813,1770582642406,-767.86506602,0.00044205,120]
[404807814,1770582642416,-1130.65671127,0.00044205,2]
[404807815,1770582642427,-177.07224819,0.00044242,56]
[404807816,1770582642438,-223.0315306,0.00044243,56]
[404807817,1770582642449,-231.28369723,0.00044243,60]
[404807818,1770582642460,-14747.0,0.00044247,120]
[404807819,1770582642471,-1000.0,0.0004425,120]
[404807820,1770582642481,-74230.0691884,0.00044251,2]
[404807821,1770582642492,-151.0,0.00044251,120]
[404807822,1770582642503,-151.0,0.00044251,7]
[404807823,1770582642514,-215.0738,0.00044254,60]
[404807824,1770582642525,-151.0,0.00044257,120]
[404807825,1770582642535,-207.4,0.00044258,30]
[404807826,1770582642546,-150.0,0.00044259,2]
[404807827,1770582642556,-150.0,0.00044259,30]
[404807828,1770582642567,-150.0,0.00044259,30]
[404807829,1770582642580,-150.0,0.00044259,30]
[404807830,1770582642591,-150.0,0.00044259,30]
[404807831,1770582642602,-150.0,0.00044259,30]
[404807832,1770582642613,-150.0,0.00044259,30]
[404807833,1770582642623,-150.0,0.00044259,30]
[404807834,1770582642632,-150.0,0.00044259,30]
[404807835,1770582642643,-150.0,0.00044259,30]
[404807836,1770582642654,-150.0,0.00044259,30]
[404807837,1770582642666,-150.0,0.00044259,30]
[404807838,1770582642676,-150.0,0.00044259,30]
[404807839,1770582642687,-150.0,0.00044259,30]
[404807840,1770582642711,-150.0,0.00044259,30]
[404807842,1770582642721,-150.0,0.00044259,30]
[404807843,1770582642732,-150.0,0.00044259,30]
[404807844,1770582642742,-150.0,0.00044259,30]
[404807845,1770582642753,-150.0,0.00044259,30]
[404807846,1770582642764,-150.0,0.00044259,30]
[404807847,1770582642775,-150.0,0.00044259,30]
[404807848,1770582642788,-150.0,0.00044259,30]
[404807849,1770582642797,-150.0,0.00044259,30]
[404807850,1770582642806,-150.0,0.00044259,30]
[404807851,1770582642816,-150.0,0.00044259,30]
[404807852,1770582642826,-150.0,0.00044259,30]
[404807853,1770582642836,-150.0,0.00044259,30]
[404807854,1770582642846,-150.0,0.00044259,30]
[404807855,1770582642856,-150.0,0.00044259,30]
[404807856,1770582642867,-150.0,0.00044259,30]
[404807857,1770582642878,-150.0,0.00044259,30]
[404807858,1770582642888,-150.0,0.00044259,30]
[404807859,1770582642898,-150.0,0.00044259,30]
[404807860,1770582642908,-150.0,0.00044259,30]
[404807861,1770582642918,-150.0,0.00044259,30]
[404807862,1770582642929,-150.0,0.00044259,30]
[404807863,1770582642939,-150.0,0.00044259,30]
[404807864,1770582642950,-150.0,0.00044259,30]
[404807865,1770582642960,-150.0,0.00044259,30]
[404807866,1770582642971,-150.0,0.00044259,30]
[404807867,1770582642983,-150.0,0.00044259,30]
[404807868,1770582642996,-150.0,0.00044259,30]
[404807869,1770582643006,-150.0,0.00044259,30]
[404807870,1770582643206,-150.0,0.00044259,30]
[404807871,1770582643216,-150.0,0.00044259,30]
[404807872,1770582643225,-150.0,0.00044259,30]
[404807873,1770582643234,-150.0,0.00044259,30]
[404807874,1770582643244,-150.0,0.00044259,30]
[404807875,1770582643253,-150.0,0.00044259,30]
[404807876,1770582643262,-150.0,0.00044259,30]
[404807877,1770582643271,-150.0,0.00044259,30]
[404807878,1770582643280,-150.0,0.00044259,30]
[404807879,1770582643290,-150.0,0.00044259,30]
[404807880,1770582643299,-150.0,0.00044259,30]
[404807881,1770582643308,-150.0,0.00044259,30]
[404807882,1770582643318,-150.0,0.00044259,30]
[404807883,1770582643327,-150.0,0.00044259,30]
[404807884,1770582643336,-150.0,0.00044259,30]
[404807885,1770582643345,-150.0,0.00044259,30]
[404807886,1770582643355,-150.0,0.00044259,30]
[404807887,1770582643363,-150.0,0.00044259,30]
[404807888,1770582643372,-150.0,0.00044259,30]
[404807889,1770582643382,-150.0,0.00044259,30]
[404807890,1770582643392,-150.0,0.00044259,30]
[404807891,1770582643403,-150.0,0.00044259,30]
[404807892,1770582643414,-150.0,0.00044259,30]
[404807893,1770582643425,-150.0,0.00044259,30]
[404807895,1770582643435,-150.0,0.00044259,30]
[404807896,1770582643444,-150.0,0.00044259,30]
[404807897,1770582643453,-150.0,0.00044259,30]
[404807898,1770582643462,-150.0,0.00044259,30]
[404807899,1770582643471,-150.0,0.00044259,30]
[404807900,1770582643481,-150.0,0.00044259,30]
[404807901,1770582643490,-150.0,0.00044259,30]
[404807902,1770582643499,-150.0,0.00044259,30]
[404807903,1770582643509,-150.0,0.00044259,30]
[404807904,1770582643527,-150.0,0.00044259,30]
[404807905,1770582643539,-150.0,0.00044259,30]
[404807907,1770582643550,-150.0,0.00044259,30]
[404807908,1770582643560,-150.0,0.00044259,30]
[404807910,1770582643573,-150.0,0.00044259,30]
[404807911,1770582643583,-150.0,0.00044259,30]
[404807912,1770582643593,-150.0,0.00044259,30]
[404807913,1770582643603,-150.0,0.00044259,30]
[404807915,1770582643613,-150.0,0.00044259,30]
[404807916,1770582643623,-150.0,0.00044259,30]
[404807917,1770582643633,-150.0,0.00044259,30]
[404807918,1770582643643,-150.0,0.00044259,30]
[404807919,1770582643653,-150.0,0.00044259,30]
[404807920,1770582643663,-150.0,0.00044259,30]
[404807921,1770582643674,-150.0,0.00044259,30]
[404807922,1770582643683,-150.0,0.00044259,30]
[404807923,1770582643693,-150.0,0.00044259,30]
[404807924,1770582643704,-150.0,0.00044259,30]
[404807925,1770582643713,-150.0,0.00044259,30]
[404807926,1770582643723,-150.0,0.00044259,30]
[404807927,1770582643733,-152.06887484,0.00044259,30]
[404807928,1770582643743,-221.6279223,0.00044259,30]
[404807929,1770582643753,-150.0,0.00044259,30]
[404807930,1770582643762,-150.0,0.00044259,30]
[404807931,1770582643772,-150.0,0.00044259,30]
[404807932,1770582643782,-150.0,0.00044259,30]
[404807933,1770582643791,-150.0,0.00044259,30]
[404807934,1770582643800,-150.0,0.00044259,30]
[404807935,1770582643810,-150.0,0.00044259,30]
[404807936,1770582643821,-150.0,0.00044259,30]
[404807937,1770582643831,-150.0,0.00044259,30]
[404807938,1770582643840,-150.0,0.00044259,30]
[404807939,1770582643850,-150.0,0.00044259,30]
[404807940,1770582643860,-150.0,0.00044259,30]
[404807941,1770582643869,-150.0,0.00044259,30]
[404807942,1770582643879,-150.0,0.00044259,30]
[404807943,1770582643889,-150.0,0.00044259,30]
[404807944,1770582643898,-150.0,0.00044259,30]
[404807945,1770582643908,-150.0,0.00044259,30]
[404807946,1770582643917,-150.0,0.00044259,30]
[404807947,1770582643927,-150.0,0.00044259,30]
[404807948,1770582643936,-150.0,0.00044259,30]
[404807949,1770582643946,-150.0,0.00044259,30]
[404807950,1770582643957,-150.0,0.00044259,30]
[404807951,1770582643966,-150.0,0.00044259,30]
[404807952,1770582643978,-150.0,0.00044259,30]
[404807953,1770582643989,-150.0,0.00044259,30]
[404807954,1770582643998,-150.0,0.00044259,30]
[404807955,1770582644009,-150.0,0.00044259,30]
[404807956,1770582644019,-150.0,0.00044259,30]
[404807957,1770582644030,-150.0,0.00044259,30]
[404807958,1770582644040,-150.0,0.00044259,30]
[404807959,1770582644050,-150.0,0.00044259,30]
[404807960,1770582644061,-150.0,0.00044259,30]
[404807961,1770582644071,-150.0,0.00044259,30]
[404807962,1770582644080,-150.0,0.00044259,30]
[404807963,1770582644092,-150.0,0.00044259,30]
[404807964,1770582644103,-150.0,0.00044259,30]
[404807965,1770582644113,-150.0,0.00044259,30]
[404807966,1770582644126,-150.0,0.00044259,30]
[404807967,1770582644137,-150.0,0.00044259,30]
[404807968,1770582644146,-150.0,0.00044259,30]
[404807969,1770582644158,-150.0,0.00044259,30]
[404807970,1770582644171,-150.0,0.00044259,30]
[404807971,1770582644181,-150.0,0.00044259,30]
[404807972,1770582644193,-150.0,0.00044259,30]
[404807973,1770582644203,-150.0,0.00044259,30]
[404807974,1770582644214,-162.30470815,0.00044259,30]
[404807975,1770582644224,-200.0,0.0004426,34]
[404807976,1770582644235,-1288.09761471,0.00044261,7]
[404807977,1770582644244,-200.0,0.00044261,7]
[404807978,1770582644254,-188.96428999,0.00044261,30]
[404807979,1770582644264,-188.75,0.00044261,30]
[404807980,1770582644274,-1104.0,0.00044261,30]
[404807981,1770582644284,-250.0,0.0004427,3]
[404807982,1770582644294,-153.74,0.0004427,120]
[404807983,1770582644304,-150.74,0.0004427,120]
[404807984,1770582644315,-5528.0,0.00044274,120]
[404807985,1770582644324,-1000.0,0.000443,120]
[404807986,1770582644333,-178.93,0.000443,14]
[404807987,1770582644345,-2000.0,0.000443,7]
[404807988,1770582644354,-109201.73505988,0.000443,4]
[404807989,1770582644364,-151.0,0.000443,120]
[404807990,1770582644376,-151.0,0.000443,120]
[404807991,1770582644388,-151.0,0.000443,120]
[404807992,1770582644399,-151.0,0.000443,120]
[404807993,1770582644411,-151.0,0.000443,120]
[404807994,1770582644421,-151.0,0.000443,120]
[404807995,1770582644431,-185.192251,0.000443,120]
[404807996,1770582644440,-151.0,0.000443,120]
[404807997,1770582644452,-151.0,0.000443,120]
[404807998,1770582644463,-151.0,0.000443,120]
[404807999,1770582644473,-151.0,0.000443,120]
[404808000,1770582644483,-151.0,0.000443,120]
[404808001,1770582644495,-151.0,0.000443,120]
[404808002,1770582644508,-151.0,0.000443,120]
[404808003,1770582644518,-169.071698,0.000443,120]
[404808004,1770582644528,-151.545217,0.000443,120]
[404808005,1770582644538,-151.545217,0.000443,120]
[404808006,1770582644549,-151.545217,0.000443,120]
[404808007,1770582644559,-151.545217,0.000443,120]
[404808008,1770582644570,-151.0,0.000443,120]
[404808009,1770582644580,-15956.70957927,0.00044304,34]
[404808010,1770582644589,-50000.0,0.00044304,53]
[404808011,1770582644599,-50000.0,0.00044304,54]
[404808012,1770582644608,-50000.0,0.00044304,55]
[404808013,1770582644619,-50000.0,0.00044304,56]
[404808014,1770582644629,-48000.0,0.00044304,57]
[404808016,1770582644639,-151.0,0.00044304,120]
[404808018,1770582644648,-151.0,0.00044304,120]
[404808020,1770582644658,-151.0,0.00044304,120]
[404808021,1770582644667,-151.0,0.00044304,120]
[404808022,1770582644677,-151.0,0.00044304,120]
[404808023,1770582644686,-151.0,0.00044304,120]
[404808024,1770582644695,-323.49690166,0.00044304,56]
[404808025,1770582644705,-3177599.85511732,0.00044305,10]
[404808026,1770582644790,-10322.00101739,0.00044305,10]
[404808027,1770582644806,-675.01067611,0.00044305,10]
[404808028,1770582644854,-1411.0,0.00039394,2]
[404808029,1770582644863,-500.0,0.00043835,120]
[404808030,1770582644873,-500.0,0.00043835,120]
[404808031,1770582644882,-500.0,0.00043835,120]
[404808032,1770582644891,-3150.80815502,0.00044305,10]
[404808033,1770582644907,-57880.46748902,0.00044305,10]
[404808034,1770582644919,-351.46849696,0.00044305,10]
[404808035,1770582644930,-268.361,0.00044305,10]
[404808036,1770582644941,-363.25709748,0.00044305,10]
[404808037,1770582645057,-711.41,0.00043928,2]
[404808056,1770582645832,-229.0,0.00035073,2]
[404808058,1770582645841,-242.3610238,0.00043928,2]
[404808061,1770582645853,-954.99437058,0.00043928,2]
[404808063,1770582645862,-435862.61130793,0.00044305,10]
[404808065,1770582645874,-620250.0,0.00044305,10]
[404808068,1770582645889,-467.74106694,0.00044305,10]
[404808070,1770582645906,-807.9345164,0.00044305,10]
[404808071,1770582645917,-595577.08404403,0.00044305,10]
[404808074,1770582645946,-266.5155634,0.00044305,10]
[404808077,1770582645958,-11825.00006151,0.00044305,10]
[404808079,1770582645969,-1594.21598736,0.00044305,10]
[404808081,1770582645980,-1189.33499715,0.00044305,10]
[404808085,1770582646006,-3074.0150822,0.00044305,10]
[404808087,1770582646017,-1104.89183922,0.00044305,10]
[404808104,1770582668113,300.0,0.00034144,120]
[404808105,1770582668365,168.46690265,0.00034689,120]
[404808106,1770582703758,229.0,0.00035587,120]
[404808108,1770582785619,300.0,0.00034144,120]
[404808109,1770582939073,-500.0,0.00027473,3]
[404808110,1770582987825,325.55562891,0.00027473,5]
[404808111,1770582987852,174.44437109,0.00027473,5]
[404808112,1770583026518,157.61677908,0.00027473,3]
[404808113,1770583083731,300.0,0.00030823,120]
[404808114,1770583209422,300.0,0.000308,120]
[404808115,1770583323345,14747.0,0.00035616,120]
[404808118,1770583499407,1309.60987839,0.00035,120]
[404808119,1770583601155,-279.28,0.00028,2]
[404808120,1770583601181,-574.44272597,0.00028021,2]
[404808121,1770583601202,-8.85993985,0.00028944,2]
[404808122,1770583612908,9652.52,0.00033934,30]
[404808130,1770583832001,-430.01327076,0.00029867,2]
[404808131,1770583832058,-48.39366955,0.00029867,2]
[404808132,1770583832068,-213.12628879,0.000307,2]
[404808133,1770583832079,-315.38055499,0.000307,2]
[404808134,1770583832089,-478.40694031,0.00030727,2]
[404808135,1770583832098,-250.0,0.000308,2]
[404808136,1770583832108,-478.40694031,0.00031586,2]
[404808137,1770583832117,-250.0,0.00031838,2]
[404808138,1770583832127,-1131.54762824,0.00032453,2]
[404808139,1770583832139,-552.16963376,0.00032453,2]
[404808140,1770583832148,-347.83036624,0.00032616,2]
[404808141,1770583832160,-161.16963376,0.00032616,2]
[404808142,1770583832169,-509.0,0.00032616,2]
[404808143,1770583832179,-528.50684378,0.0003275,2]
[404808144,1770583832189,-250.0,0.00032854,2]
[404808145,1770583832198,-478.40694031,0.00033305,2]
[404808146,1770583832208,-212.41661105,0.00033526,3]
[404808149,1770583838191,-88.58338895,0.00033526,3]
[404808150,1770583838200,-300.0,0.00033526,2]
[404808151,1770583838210,-111.41661105,0.00033527,2]
[404808152,1770583838222,-796.24490861,0.00033527,2]
[404808153,1770583838233,-474.1000015,0.00033527,2]
[404808154,1770583838246,-149.14847884,0.00033527,2]
[404808155,1770583838256,-11966.05,0.00033527,2]
[404808156,1770583838266,-25980.9,0.0003356,2]
[404808157,1770583838275,-200.0,0.00033836,2]
[404808158,1770583838285,-1540.2,0.00033836,2]
[404808159,1770583838294,-4259.5,0.00033836,2]
[404808160,1770583838303,-150.99,0.00033836,2]
[404808161,1770583838312,-500.0,0.00033973,2]
[404808162,1770583838322,-1002.16615002,0.00033991,2]
[404808163,1770583838331,-10303.43,0.00033992,2]
[404808164,1770583838341,-229.0,0.00034073,2]
[404808165,1770583838351,-478.40694031,0.00034165,2]
[404808166,1770583838360,-229.0,0.00034214,2]
[404808167,1770583838369,-229.0,0.00034255,7]
[404808168,1770583838379,-188.0,0.00034467,2]
[404808169,1770583838388,-188.0,0.00034551,2]
[404808170,1770583838397,-539.841759,0.000348,7]
[404808171,1770583838406,-528.50684378,0.000348,2]
[404808172,1770583838416,-1130.65671128,0.000348,2]
[404808173,1770583838426,-1642.63686852,0.000348,8]
[404808174,1770583838435,-180.61489328,0.000348,2]
[404808175,1770583838444,-1741.73214039,0.000348,2]
[404808176,1770583838454,-679.32896148,0.00034804,2]
[404808177,1770583838463,-178.32836112,0.00034804,2]
[404808178,1770583838476,-5528.0,0.00034849,2]
[404808179,1770583838485,-151.0,0.00034865,14]
[404808180,1770583838495,-590.33554475,0.00034867,7]
[404808181,1770583838505,-3500000.0,0.00034868,2]
[404808182,1770583838516,-543.47,0.000349,2]
[404808183,1770583838526,-8752.05,0.000349,2]
[404808184,1770583838536,-150.0,0.00034904,2]
[404808186,1770583838546,-229.0,0.00034918,2]
[404808188,1770583838555,-229.0,0.00034968,2]
[404808190,1770583838564,-478.40694031,0.00035025,2]
[404808192,1770583838574,-229.0,0.00035069,7]
[404808194,1770583838583,-200.0,0.00035293,2]
[404808196,1770583838593,-188.0,0.00035392,2]
[404808197,1770583838603,-500.0,0.00035422,2]
[404808198,1770583838612,-5529.0,0.000355,5]
[404808199,1770583838623,-3160.9711,0.00035547,2]
[404808200,1770583838632,-4684.6197,0.00035547,2]
[404808201,1770583838642,-189.0,0.00035586,2]
[404808202,1770583838651,-229.0,0.00035599,2]
[404808203,1770583838664,-6229.44,0.00035601,2]
[404808204,1770583838673,-1000.0,0.00035646,2]
[404808205,1770583838682,-229.0,0.00035747,120]
[404808206,1770583838692,-679.32896142,0.00035848,2]
[404808207,1770583838701,-478.40694031,0.00035884,2]
[404808208,1770583838711,-229.0,0.00035888,2]
[404808209,1770583838720,-189.0,0.00035974,120]
[404808210,1770583838729,-188.0,0.0003599,7]
[404808211,1770583838738,-150.0,0.00036007,2]
[404808212,1770583838748,-150.0,0.00036062,2]
[404808213,1770583838757,-1741.73214038,0.00036143,2]
[404808214,1770583838766,-229.0,0.00036235,2]
[404808215,1770583838776,-229.0,0.00036251,7]
[404808216,1770583838785,-180.418,0.00036281,44]
[404808217,1770583838794,-188.0,0.00036587,7]
[404808218,1770583838804,-150.0,0.00036649,2]
[404808219,1770583838813,-191.0,0.00036653,2]
[404808220,1770583838822,-229.0,0.00036658,7]
[404808221,1770583838831,-478.40694031,0.00036744,2]
[404808222,1770583838840,-8752.05,0.000368,2]
[404808223,1770583838850,-229.0,0.00036814,2]
[404808224,1770583838859,-679.32896142,0.00036892,2]
[404808225,1770583838871,-543.47,0.000369,2]
[404808226,1770583838880,-188.0,0.00037079,2]
[404808227,1770583838890,-539.84175899,0.0003715,10]
[404808228,1770583838899,-229.0,0.00037223,7]
[404808229,1770583838908,-189.0,0.00037224,7]
[404808230,1770583838918,-188.0,0.00037334,120]
[404808231,1770583838927,-1741.73214038,0.00037485,2]
[404808232,1770583838938,-478.40694031,0.00037603,2]
[404808233,1770583838948,-300.0,0.00037808,2]
[404808234,1770583838957,-509.0,0.00037881,8]
[404808235,1770583838967,-679.32896142,0.00037935,2]
[404808236,1770583838976,-478.40694031,0.00038463,2]
[404808237,1770583838987,-150.0,0.00038482,2]
[404808238,1770583838996,-614.18,0.00038696,2]
[404808239,1770583839006,-1741.73214038,0.00038828,2]
[404808240,1770583839016,-679.32896142,0.00038979,2]
[404808241,1770583839026,-1852.42,0.00038981,2]